[Event "*** Titled Tuesday 3|2 Blitz"]
[Site "Chess.com"]
[Date "2017.06.06"]
[Round "8"]
[White "Spinaltap"]
[Black "ArnaudovP"]
[Result "1-0"]
[WhiteElo "2514"]
[BlackElo "2420"]
[TimeControl "180+2"]
[EndTime "15:33:33 PDT"]
[Termination "Spinaltap won by resignation"]

1. d4 {[%clk 0:03:02]} 1... Nf6 {[%clk 0:02:58.3]} 2. c4 {[%clk 0:03:02.4]} 2...
Nc6 {[%clk 0:02:58.8]} 3. Nf3 {[%clk 0:03:02.4]} 3... e6 {[%clk 0:02:59.6]} 4.
g3 {[%clk 0:03:01.9]} 4... d5 {[%clk 0:02:58.6]} 5. Nbd2 {[%clk 0:02:58.7]} 5...
Bb4 {[%clk 0:02:58.3]} 6. Qc2 {[%clk 0:02:57.4]} 6... dxc4 {[%clk 0:02:57.7]} 7.
Qxc4 {[%clk 0:02:57.6]} 7... Qd5 {[%clk 0:02:58.5]} 8. Qxd5 {[%clk 0:02:47.5]}
8... exd5 {[%clk 0:02:58.9]} 9. a3 {[%clk 0:02:47.8]} 9... Bd6 {[%clk 0:02:55]}
10. b4 {[%clk 0:02:41.1]} 10... Ne7 {[%clk 0:02:52.9]} 11. e3 {[%clk 0:02:29.8]}
11... c6 {[%clk 0:02:52.6]} 12. Bb2 {[%clk 0:02:25.3]} 12... Bf5 {[%clk
0:02:52.6]} 13. Ne5 {[%clk 0:02:22.8]} 13... Ne4 {[%clk 0:02:45.2]} 14. f3
{[%clk 0:02:19.4]} 14... Nxd2 {[%clk 0:02:44.2]} 15. Kxd2 {[%clk 0:02:20.4]}
15... f6 {[%clk 0:02:43.5]} 16. Nd3 {[%clk 0:02:21]} 16... a5 {[%clk 0:02:43.4]}
17. g4 {[%clk 0:02:06.2]} 17... Bg6 {[%clk 0:02:41.7]} 18. b5 {[%clk 0:02:01.9]}
18... O-O {[%clk 0:02:33.6]} 19. bxc6 {[%clk 0:02:01.4]} 19... bxc6 {[%clk
0:02:34.1]} 20. Bc3 {[%clk 0:01:56.8]} 20... Rfb8 {[%clk 0:02:32.3]} 21. Be2
{[%clk 0:01:55.8]} 21... Nc8 {[%clk 0:02:32.8]} 22. Nc5 {[%clk 0:01:36.8]} 22...
Nb6 {[%clk 0:02:29.5]} 23. h3 {[%clk 0:01:32.8]} 23... h6 {[%clk 0:02:09.9]} 24.
Rhc1 {[%clk 0:01:27.5]} 24... Kf7 {[%clk 0:02:03.5]} 25. a4 {[%clk 0:01:25.4]}
25... Ke7 {[%clk 0:02:00.3]} 26. Ke1 {[%clk 0:01:19]} 26... Bxc5 {[%clk
0:01:58.7]} 27. dxc5 {[%clk 0:01:19.6]} 27... Nd7 {[%clk 0:01:59.5]} 28. Bd4
{[%clk 0:01:17.9]} 28... Rb3 {[%clk 0:01:54.8]} 29. Kf2 {[%clk 0:01:12.3]} 29...
Ne5 {[%clk 0:01:54.2]} 30. Rc3 {[%clk 0:01:06.6]} 30... Rb2 {[%clk 0:01:50.8]}
31. Kf1 {[%clk 0:00:59.7]} 31... Rab8 {[%clk 0:01:49.5]} 32. f4 {[%clk
0:01:00.1]} 32... Bb1 {[%clk 0:01:39.5]} 33. fxe5 {[%clk 0:00:58]} 1-0

[Event "*** Titled Tuesday 3|2 Blitz"]
[Site "Chess.com"]
[Date "2017.06.06"]
[Round "8"]
[White "Setne007"]
[Black "AllStarShark"]
[Result "0-1"]
[WhiteElo "2036"]
[BlackElo "2284"]
[TimeControl "180+2"]
[EndTime "15:33:46 PDT"]
[Termination "AllStarShark won by resignation"]

1. d4 {[%clk 0:03:02]} 1... d5 {[%clk 0:02:58.9]} 2. Bf4 {[%clk 0:03:02.8]} 2...
Nf6 {[%clk 0:02:58.4]} 3. e3 {[%clk 0:03:04.2]} 3... e6 {[%clk 0:03:00.3]} 4. c3
{[%clk 0:03:02]} 4... Bd6 {[%clk 0:03:01.1]} 5. Nd2 {[%clk 0:03:01.1]} 5... O-O
{[%clk 0:03:00.5]} 6. Ngf3 {[%clk 0:02:56.8]} 6... c5 {[%clk 0:03:01.4]} 7. Bd3
{[%clk 0:02:57.3]} 7... Nc6 {[%clk 0:03:02.5]} 8. Bg3 {[%clk 0:02:56]} 8... b6
{[%clk 0:02:58.9]} 9. e4 {[%clk 0:02:44.3]} 9... dxe4 {[%clk 0:02:53.1]} 10.
Nxe4 {[%clk 0:02:45.1]} 10... Bxg3 {[%clk 0:02:44.9]} 11. hxg3 {[%clk
0:02:33.8]} 11... h6 {[%clk 0:02:39]} 12. dxc5 {[%clk 0:02:23.8]} 12... bxc5
{[%clk 0:02:26.8]} 13. Nxc5 {[%clk 0:02:18]} 13... Qb6 {[%clk 0:02:25.7]} 14.
Nb3 {[%clk 0:02:13.4]} 14... a5 {[%clk 0:02:21.9]} 15. Qe2 {[%clk 0:02:12.2]}
15... a4 {[%clk 0:02:21.9]} 16. Nbd4 {[%clk 0:02:13]} 16... Nxd4 {[%clk
0:02:06.9]} 17. Nxd4 {[%clk 0:02:12.3]} 17... e5 {[%clk 0:02:07.7]} 18. Nb5
{[%clk 0:01:14.9]} 18... e4 {[%clk 0:02:07]} 19. Bc4 {[%clk 0:01:15.8]} 19...
Bg4 {[%clk 0:02:04.9]} 20. Qf1 {[%clk 0:01:10.6]} 20... Qc6 {[%clk 0:01:52.6]}
21. Nd4 {[%clk 0:01:04.1]} 21... Qb6 {[%clk 0:01:49.6]} 22. Rb1 {[%clk
0:00:56.1]} 22... Rad8 {[%clk 0:01:47.2]} 23. Rh4 {[%clk 0:00:18.7]} 23... Rxd4
{[%clk 0:01:42.2]} 24. Rxg4 {[%clk 0:00:14.2]} 24... Rxc4 {[%clk 0:01:41.1]} 25.
Rxg7+ {[%clk 0:00:09.9]} 25... Kxg7 {[%clk 0:01:42.7]} 26. Qxc4 {[%clk 0:00:11]}
26... e3 {[%clk 0:01:40.1]} 27. f3 {[%clk 0:00:09.1]} 27... Qd6 {[%clk
0:01:39.7]} 0-1

[Event "*** Titled Tuesday 3|2 Blitz"]
[Site "Chess.com"]
[Date "2017.06.06"]
[Round "8"]
[White "Vice64"]
[Black "dinevmk"]
[Result "1-0"]
[WhiteElo "2321"]
[BlackElo "2014"]
[TimeControl "180+2"]
[EndTime "15:34:21 PDT"]
[Termination "Vice64 won on time"]

1. Nf3 {[%clk 0:03:02]} 1... Nf6 {[%clk 0:02:59.7]} 2. g3 {[%clk 0:03:03.3]}
2... g6 {[%clk 0:03:00.7]} 3. Bg2 {[%clk 0:03:05.2]} 3... Bg7 {[%clk 0:03:01.7]}
4. O-O {[%clk 0:03:07.1]} 4... O-O {[%clk 0:03:02.4]} 5. d3 {[%clk 0:03:09]}
5... c6 {[%clk 0:03:03.4]} 6. e4 {[%clk 0:03:09.7]} 6... d5 {[%clk 0:03:04]} 7.
e5 {[%clk 0:03:10.6]} 7... Nfd7 {[%clk 0:03:04.1]} 8. d4 {[%clk 0:03:12.5]} 8...
e6 {[%clk 0:03:04.7]} 9. h4 {[%clk 0:03:10.1]} 9... c5 {[%clk 0:03:05.3]} 10. c3
{[%clk 0:03:10.3]} 10... Nc6 {[%clk 0:03:05.4]} 11. Re1 {[%clk 0:03:10.8]} 11...
f6 {[%clk 0:03:05.5]} 12. exf6 {[%clk 0:03:09.6]} 12... Qxf6 {[%clk 0:03:03.4]}
13. Bg5 {[%clk 0:03:07.5]} 13... Qf7 {[%clk 0:03:03.2]} 14. Na3 {[%clk
0:03:06.2]} 14... cxd4 {[%clk 0:03:03.3]} 15. Nb5 {[%clk 0:02:57.7]} 15... dxc3
{[%clk 0:03:02]} 16. Nd6 {[%clk 0:02:53]} 16... cxb2 {[%clk 0:02:56.6]} 17. Rb1
{[%clk 0:02:53.2]} 17... Nb6 {[%clk 0:01:36.6]} 18. Nxf7 {[%clk 0:02:52.6]}
18... Rxf7 {[%clk 0:01:37.3]} 19. Bf4 {[%clk 0:02:39.7]} 19... Nc4 {[%clk
0:01:33.1]} 20. Bh3 {[%clk 0:02:35]} 20... Na3 {[%clk 0:01:08.8]} 21. Bxe6
{[%clk 0:02:30.9]} 21... Bxe6 {[%clk 0:01:03.8]} 22. Rxe6 {[%clk 0:02:32.8]}
22... Nxb1 {[%clk 0:01:04.1]} 23. Qxb1 {[%clk 0:02:33.8]} 23... Rc8 {[%clk
0:01:02]} 24. Re1 {[%clk 0:02:23.9]} 24... a5 {[%clk 0:00:38.4]} 25. Kg2 {[%clk
0:02:22.5]} 25... a4 {[%clk 0:00:38.7]} 26. a3 {[%clk 0:02:23.2]} 26... b5
{[%clk 0:00:38.7]} 27. Ne5 {[%clk 0:02:17.2]} 27... b4 {[%clk 0:00:15.2]} 28.
Qxb2 {[%clk 0:02:07.4]} 28... b3 {[%clk 0:00:13.7]} 29. Qd2 {[%clk 0:02:02.3]}
29... Nxe5 {[%clk 0:00:11.9]} 30. Bxe5 {[%clk 0:02:01]} 30... Rc2 {[%clk
0:00:12.3]} 31. Qxd5 {[%clk 0:02:01]} 31... Rxf2+ {[%clk 0:00:12.6]} 32. Kh3
{[%clk 0:02:01.6]} 32... Bf8 {[%clk 0:00:11.2]} 33. Bd4 {[%clk 0:01:58.9]} 33...
Rd2 {[%clk 0:00:10.3]} 34. Rf1 {[%clk 0:01:58]} 1-0

[Event "*** Titled Tuesday 3|2 Blitz"]
[Site "Chess.com"]
[Date "2017.06.06"]
[Round "8"]
[White "djano"]
[Black "aa175"]
[Result "1-0"]
[WhiteElo "2324"]
[BlackElo "1880"]
[TimeControl "180+2"]
[EndTime "15:34:24 PDT"]
[Termination "djano won by checkmate"]

1. d4 {[%clk 0:03:02]} 1... d5 {[%clk 0:02:54.3]} 2. Nc3 {[%clk 0:03:01.8]} 2...
Nf6 {[%clk 0:02:54.4]} 3. Bf4 {[%clk 0:03:02.1]} 3... e6 {[%clk 0:02:54.6]} 4.
e3 {[%clk 0:02:57.3]} 4... a5 {[%clk 0:02:51.9]} 5. Nf3 {[%clk 0:02:58]} 5... a4
{[%clk 0:02:52.6]} 6. a3 {[%clk 0:02:57]} 6... b6 {[%clk 0:02:53]} 7. Ne5 {[%clk
0:02:49.4]} 7... Ba6 {[%clk 0:02:35.7]} 8. Bd3 {[%clk 0:02:44.3]} 8... Bd6
{[%clk 0:02:33.8]} 9. Nxa4 {[%clk 0:02:40.3]} 9... Bxd3 {[%clk 0:02:31.8]} 10.
cxd3 {[%clk 0:02:42.2]} 10... c5 {[%clk 0:02:26.5]} 11. Qb3 {[%clk 0:02:24.3]}
11... Nbd7 {[%clk 0:02:06.3]} 12. Nxf7 {[%clk 0:02:25]} 12... Kxf7 {[%clk
0:02:06.7]} 13. Bxd6 {[%clk 0:02:26.1]} 13... cxd4 {[%clk 0:02:00.7]} 14. exd4
{[%clk 0:02:23.3]} 14... b5 {[%clk 0:02:00.4]} 15. Nc5 {[%clk 0:02:22.7]} 15...
Nxc5 {[%clk 0:01:42.5]} 16. dxc5 {[%clk 0:02:24.6]} 16... Qd7 {[%clk 0:01:35.3]}
17. O-O {[%clk 0:02:21.7]} 17... Qc6 {[%clk 0:01:30.1]} 18. Rfe1 {[%clk
0:02:19.8]} 18... Ra4 {[%clk 0:01:27.6]} 19. Re3 {[%clk 0:02:14.9]} 19... Re8
{[%clk 0:01:26.3]} 20. Rae1 {[%clk 0:02:14.1]} 20... Qd7 {[%clk 0:01:13.7]} 21.
h3 {[%clk 0:02:10.1]} 21... Qc6 {[%clk 0:01:12.4]} 22. Qc3 {[%clk 0:02:08]}
22... d4 {[%clk 0:01:10.7]} 23. Qc2 {[%clk 0:01:49.8]} 23... dxe3 {[%clk
0:01:11.4]} 24. fxe3 {[%clk 0:01:51.7]} 24... Rd8 {[%clk 0:01:07.9]} 25. Qb3
{[%clk 0:01:50.3]} 25... Ra7 {[%clk 0:00:49.5]} 26. Rf1 {[%clk 0:01:48.7]} 26...
Rxd6 {[%clk 0:00:47.8]} 27. cxd6 {[%clk 0:01:49.2]} 27... Qxd6 {[%clk
0:00:49.7]} 28. Qxb5 {[%clk 0:01:47.6]} 28... Rd7 {[%clk 0:00:48.8]} 29. d4
{[%clk 0:01:42]} 29... Rc7 {[%clk 0:00:48.7]} 30. Qe5 {[%clk 0:01:41.1]} 30...
Ke7 {[%clk 0:00:47.5]} 31. Qg5 {[%clk 0:01:40.1]} 31... Ke8 {[%clk 0:00:41.2]}
32. a4 {[%clk 0:01:31.1]} 32... Qd5 {[%clk 0:00:35.5]} 33. Qg3 {[%clk
0:01:29.9]} 33... Rb7 {[%clk 0:00:27.3]} 34. Rc1 {[%clk 0:01:26.7]} 34... Ne4
{[%clk 0:00:23.7]} 35. Qf4 {[%clk 0:01:21.7]} 35... Rf7 {[%clk 0:00:21.3]} 36.
Rc8+ {[%clk 0:01:20.2]} 36... Kd7 {[%clk 0:00:22.2]} 37. Qc7# {[%clk 0:01:19.2]}
1-0

[Event "*** Titled Tuesday 3|2 Blitz"]
[Site "Chess.com"]
[Date "2017.06.06"]
[Round "8"]
[White "dolynachess"]
[Black "Enzy63"]
[Result "1-0"]
[WhiteElo "2309"]
[BlackElo "2047"]
[TimeControl "180+2"]
[EndTime "15:34:48 PDT"]
[Termination "dolynachess won by resignation"]

1. c4 {[%clk 0:03:02]} 1... Nf6 {[%clk 0:02:59.4]} 2. Nc3 {[%clk 0:03:00.1]}
2... g6 {[%clk 0:02:57.3]} 3. g3 {[%clk 0:02:59.3]} 3... Bg7 {[%clk 0:02:57.7]}
4. Bg2 {[%clk 0:03:00.9]} 4... O-O {[%clk 0:02:58.9]} 5. Nf3 {[%clk 0:03:01.5]}
5... d6 {[%clk 0:03:00.5]} 6. O-O {[%clk 0:03:03]} 6... e5 {[%clk 0:03:00.3]} 7.
d3 {[%clk 0:03:03.9]} 7... Nc6 {[%clk 0:03:00.5]} 8. Bg5 {[%clk 0:03:05.1]} 8...
h6 {[%clk 0:02:59.1]} 9. Bxf6 {[%clk 0:03:06.5]} 9... Bxf6 {[%clk 0:03:00.8]}
10. Rb1 {[%clk 0:03:08.4]} 10... a5 {[%clk 0:02:58.5]} 11. a3 {[%clk 0:03:08.9]}
11... Be6 {[%clk 0:02:31.5]} 12. b4 {[%clk 0:03:09.2]} 12... axb4 {[%clk
0:02:32.4]} 13. axb4 {[%clk 0:03:11.1]} 13... Qc8 {[%clk 0:02:20]} 14. Nd2
{[%clk 0:03:09.5]} 14... Bh3 {[%clk 0:02:16.2]} 15. Nd5 {[%clk 0:03:10.2]} 15...
Bd8 {[%clk 0:02:09.1]} 16. b5 {[%clk 0:03:01.7]} 16... Nd4 {[%clk 0:01:57]} 17.
e3 {[%clk 0:02:53.9]} 17... Bxg2 {[%clk 0:01:50.6]} 18. Kxg2 {[%clk 0:02:55.8]}
18... Ne6 {[%clk 0:01:50.4]} 19. Ra1 {[%clk 0:02:55.9]} 19... Rxa1 {[%clk
0:01:38.5]} 20. Qxa1 {[%clk 0:02:57.8]} 20... f5 {[%clk 0:01:37.8]} 21. Qa7
{[%clk 0:02:55]} 21... f4 {[%clk 0:01:31.2]} 22. exf4 {[%clk 0:02:44.2]} 22...
exf4 {[%clk 0:01:30]} 23. Nf3 {[%clk 0:02:38.2]} 23... g5 {[%clk 0:01:20.7]} 24.
Nd4 {[%clk 0:02:34.3]} 24... Nxd4 {[%clk 0:00:59.4]} 25. Qxd4 {[%clk 0:02:36.2]}
25... f3+ {[%clk 0:00:56.8]} 26. Kh1 {[%clk 0:02:37.6]} 26... Qh3 {[%clk
0:00:56.9]} 27. Rg1 {[%clk 0:02:38.7]} 27... c6 {[%clk 0:00:48.6]} 28. bxc6
{[%clk 0:02:35.5]} 28... bxc6 {[%clk 0:00:49.6]} 29. Ne3 {[%clk 0:02:33.6]}
29... Be7 {[%clk 0:00:18.9]} 30. g4 {[%clk 0:02:26.4]} 30... Rf4 {[%clk
0:00:14.8]} 31. Qa7 {[%clk 0:02:20.6]} 31... Bf6 {[%clk 0:00:15.3]} 32. Qa8+
{[%clk 0:02:07.9]} 32... Kg7 {[%clk 0:00:13.5]} 33. Qxc6 {[%clk 0:02:09.3]}
33... Be5 {[%clk 0:00:11.4]} 34. Rg3 {[%clk 0:01:55.9]} 34... Qh4 {[%clk
0:00:11.5]} 35. h3 {[%clk 0:01:25.7]} 35... Rf7 {[%clk 0:00:10.7]} 36. Rxf3
{[%clk 0:01:21.8]} 1-0

[Event "*** Titled Tuesday 3|2 Blitz"]
[Site "Chess.com"]
[Date "2017.06.06"]
[Round "8"]
[White "bugbug01052018"]
[Black "Rating-Schmating"]
[Result "0-1"]
[WhiteElo "1927"]
[BlackElo "2315"]
[TimeControl "180+2"]
[EndTime "15:34:48 PDT"]
[Termination "Rating-Schmating won by resignation"]

1. e4 {[%clk 0:03:02]} 1... e6 {[%clk 0:02:59.8]} 2. Nf3 {[%clk 0:03:03.4]} 2...
d5 {[%clk 0:03:00.7]} 3. Nc3 {[%clk 0:03:04.8]} 3... Nf6 {[%clk 0:03:01.9]} 4.
exd5 {[%clk 0:03:04.7]} 4... exd5 {[%clk 0:03:02.6]} 5. d4 {[%clk 0:03:05.6]}
5... Bd6 {[%clk 0:03:03.7]} 6. Bd3 {[%clk 0:03:06.7]} 6... O-O {[%clk
0:03:04.1]} 7. O-O {[%clk 0:03:08.1]} 7... h6 {[%clk 0:03:05]} 8. Be3 {[%clk
0:03:05.6]} 8... Bg4 {[%clk 0:03:04.5]} 9. h3 {[%clk 0:03:06.7]} 9... Bxf3
{[%clk 0:03:03.9]} 10. Qxf3 {[%clk 0:03:06.6]} 10... c6 {[%clk 0:03:02.4]} 11.
Bf4 {[%clk 0:03:04.9]} 11... Qc7 {[%clk 0:02:58.1]} 12. Bxd6 {[%clk 0:03:04.2]}
12... Qxd6 {[%clk 0:03:00]} 13. Qf5 {[%clk 0:03:05.7]} 13... Nbd7 {[%clk
0:02:58.8]} 14. Rfe1 {[%clk 0:03:06.3]} 14... Rfe8 {[%clk 0:02:59.8]} 15. a4
{[%clk 0:02:59.5]} 15... Nb6 {[%clk 0:02:59.2]} 16. a5 {[%clk 0:02:59.5]} 16...
Nc4 {[%clk 0:02:59.3]} 17. Bxc4 {[%clk 0:03:00.1]} 17... dxc4 {[%clk 0:02:59.9]}
18. Red1 {[%clk 0:02:46.9]} 18... Rad8 {[%clk 0:02:57.4]} 19. Na4 {[%clk
0:02:44.2]} 19... Qd5 {[%clk 0:02:54.6]} 20. Qxd5 {[%clk 0:02:40.5]} 20... Nxd5
{[%clk 0:02:54]} 21. c3 {[%clk 0:02:39.5]} 21... Re2 {[%clk 0:02:48.9]} 22. Nc5
{[%clk 0:02:38.5]} 22... Rxb2 {[%clk 0:02:46.5]} 23. Rdc1 {[%clk 0:02:22.5]}
23... b6 {[%clk 0:02:43.7]} 24. axb6 {[%clk 0:02:15.9]} 24... axb6 {[%clk
0:02:44.6]} 25. Nb7 {[%clk 0:02:16.7]} 25... Re8 {[%clk 0:02:42.8]} 26. Nd6
{[%clk 0:02:14.5]} 26... Ree2 {[%clk 0:02:41.8]} 27. Ra8+ {[%clk 0:02:10.3]}
27... Kh7 {[%clk 0:02:42.5]} 28. Rf1 {[%clk 0:02:11.5]} 28... b5 {[%clk
0:02:37]} 29. Rc8 {[%clk 0:02:03.5]} 29... Nxc3 {[%clk 0:02:37.5]} 30. Rxc6
{[%clk 0:02:00.7]} 30... Ne4 {[%clk 0:02:37.4]} 31. Nxe4 {[%clk 0:02:01]} 31...
Rxe4 {[%clk 0:02:37.6]} 32. d5 {[%clk 0:02:02.5]} 32... Rd4 {[%clk 0:02:37.7]}
33. Rc5 {[%clk 0:02:01.9]} 33... b4 {[%clk 0:02:37.7]} 34. Rc1 {[%clk
0:02:01.7]} 34... c3 {[%clk 0:02:38.5]} 35. g3 {[%clk 0:01:55.3]} 35... Rdd2
{[%clk 0:02:38.4]} 36. h4 {[%clk 0:01:43.1]} 36... Rxf2 {[%clk 0:02:38.9]} 37.
d6 {[%clk 0:01:44.2]} 37... Rfd2 {[%clk 0:02:39.1]} 38. Rc6 {[%clk 0:01:44.9]}
38... c2 {[%clk 0:02:40]} 39. d7 {[%clk 0:01:39.3]} 39... Rxd7 {[%clk
0:02:33.2]} 40. R6xc2 {[%clk 0:01:39.1]} 40... Rxc2 {[%clk 0:02:30.4]} 41. Rxc2
{[%clk 0:01:39.2]} 41... Rd1+ {[%clk 0:02:30.8]} 42. Kg2 {[%clk 0:01:38.7]}
42... Rb1 {[%clk 0:02:32.7]} 43. Rf2 {[%clk 0:01:34.4]} 43... f6 {[%clk
0:02:31.3]} 44. Rf5 {[%clk 0:01:34.1]} 44... Kg6 {[%clk 0:02:32]} 45. Rb5 {[%clk
0:01:34.9]} 45... h5 {[%clk 0:02:30.6]} 46. Rb7 {[%clk 0:01:32.9]} 46... b3
{[%clk 0:02:31.4]} 47. Rb5 {[%clk 0:01:32.6]} 47... Kf7 {[%clk 0:02:31.6]} 48.
Rb7+ {[%clk 0:01:33.3]} 48... Ke6 {[%clk 0:02:22.5]} 49. Rb5 {[%clk 0:01:30.7]}
49... Kd6 {[%clk 0:02:15.4]} 50. Rb8 {[%clk 0:01:24]} 50... Kc5 {[%clk
0:02:13.7]} 51. Rc8+ {[%clk 0:01:23]} 51... Kd4 {[%clk 0:02:14.6]} 52. Rd8+
{[%clk 0:01:23.6]} 52... Kc3 {[%clk 0:02:14.2]} 53. Rc8+ {[%clk 0:01:24.4]}
53... Kb2 {[%clk 0:02:14.6]} 54. Kf2 {[%clk 0:01:22.5]} 54... Rc1 {[%clk
0:02:13.1]} 55. Ra8 {[%clk 0:01:21.3]} 55... Rc2+ {[%clk 0:02:12.4]} 56. Ke1
{[%clk 0:01:22]} 56... Kb1 {[%clk 0:02:13.7]} 57. Kd1 {[%clk 0:01:21.2]} 57...
b2 {[%clk 0:02:15]} 58. Ra3 {[%clk 0:01:18.1]} 58... Rc6 {[%clk 0:02:12.9]} 59.
Kd2 {[%clk 0:01:17.6]} 59... Rd6+ {[%clk 0:02:13.9]} 60. Kc3 {[%clk 0:01:16.7]}
60... Kc1 {[%clk 0:02:13.5]} 0-1

[Event "*** Titled Tuesday 3|2 Blitz"]
[Site "Chess.com"]
[Date "2017.06.06"]
[Round "8"]
[White "AkshatChandra"]
[Black "TenisMaster"]
[Result "0-1"]
[WhiteElo "2731"]
[BlackElo "2693"]
[TimeControl "180+2"]
[EndTime "15:34:59 PDT"]
[Termination "TenisMaster won by checkmate"]

1. d4 {[%clk 0:03:01.4]} 1... d5 {[%clk 0:02:54.7]} 2. Nf3 {[%clk 0:03:01.7]}
2... Nf6 {[%clk 0:02:54.9]} 3. c4 {[%clk 0:03:00.7]} 3... c6 {[%clk 0:02:55.6]}
4. Nc3 {[%clk 0:02:58]} 4... e6 {[%clk 0:02:56]} 5. Bg5 {[%clk 0:02:58.3]} 5...
Nbd7 {[%clk 0:02:56.5]} 6. e3 {[%clk 0:02:57.2]} 6... h6 {[%clk 0:02:56.9]} 7.
Bh4 {[%clk 0:02:50.8]} 7... g5 {[%clk 0:02:57.9]} 8. Bg3 {[%clk 0:02:51.9]} 8...
Nh5 {[%clk 0:02:59.6]} 9. Bd3 {[%clk 0:02:27.4]} 9... Nxg3 {[%clk 0:02:58]} 10.
hxg3 {[%clk 0:02:29.3]} 10... Bg7 {[%clk 0:02:59.1]} 11. Qe2 {[%clk 0:02:28.1]}
11... Qe7 {[%clk 0:02:54.4]} 12. O-O-O {[%clk 0:02:28.7]} 12... dxc4 {[%clk
0:02:46.6]} 13. Bxc4 {[%clk 0:02:30.6]} 13... a6 {[%clk 0:02:47.8]} 14. Kb1
{[%clk 0:02:25.9]} 14... b5 {[%clk 0:02:29.7]} 15. Bd3 {[%clk 0:02:26.7]} 15...
c5 {[%clk 0:02:31]} 16. Be4 {[%clk 0:02:22.2]} 16... Ra7 {[%clk 0:02:23.6]} 17.
Bc6 {[%clk 0:02:14.2]} 17... O-O {[%clk 0:02:17.4]} 18. Bxd7 {[%clk 0:02:07.5]}
18... Bxd7 {[%clk 0:02:17.3]} 19. Ne5 {[%clk 0:02:08.4]} 19... cxd4 {[%clk
0:01:41.3]} 20. exd4 {[%clk 0:02:03.4]} 20... b4 {[%clk 0:01:42.1]} 21. Ne4
{[%clk 0:02:01.3]} 21... Bb5 {[%clk 0:01:42.1]} 22. Qh5 {[%clk 0:01:45]} 22...
Rd8 {[%clk 0:01:11.9]} 23. f4 {[%clk 0:01:43]} 23... Qb7 {[%clk 0:00:47.1]} 24.
Nc5 {[%clk 0:01:19.2]} 24... Qxg2 {[%clk 0:00:47.7]} 25. fxg5 {[%clk 0:01:20.7]}
25... Be2 {[%clk 0:00:48.4]} 26. Qh4 {[%clk 0:00:29.6]} 26... Bxd1 {[%clk
0:00:48.6]} 27. Rxd1 {[%clk 0:00:20.1]} 27... Bxe5 {[%clk 0:00:33.6]} 28. gxh6
{[%clk 0:00:20.1]} 28... Rxd4 {[%clk 0:00:34.3]} 29. Qg5+ {[%clk 0:00:06.9]}
29... Kh7 {[%clk 0:00:35.3]} 30. Re1 {[%clk 0:00:02.3]} 30... Rd1+ {[%clk
0:00:33.9]} 31. Rxd1 {[%clk 0:00:02.5]} 31... Qxb2# {[%clk 0:00:35.5]} 0-1

[Event "*** Titled Tuesday 3|2 Blitz"]
[Site "Chess.com"]
[Date "2017.06.06"]
[Round "8"]
[White "Fins0905"]
[Black "Schemato"]
[Result "1-0"]
[WhiteElo "2420"]
[BlackElo "2291"]
[TimeControl "180+2"]
[EndTime "15:35:12 PDT"]
[Termination "Fins0905 won by resignation"]

1. d4 {[%clk 0:03:02]} 1... e6 {[%clk 0:03:00.2]} 2. c4 {[%clk 0:03:01.4]} 2...
f5 {[%clk 0:03:00.8]} 3. g3 {[%clk 0:03:01.2]} 3... Nf6 {[%clk 0:03:01.5]} 4.
Bg2 {[%clk 0:03:02.5]} 4... c6 {[%clk 0:03:03]} 5. Nf3 {[%clk 0:02:57.6]} 5...
d5 {[%clk 0:03:03.2]} 6. O-O {[%clk 0:02:59.1]} 6... Bd6 {[%clk 0:03:02.9]} 7.
b3 {[%clk 0:02:59.6]} 7... Qe7 {[%clk 0:03:03.5]} 8. Bb2 {[%clk 0:02:59.9]} 8...
O-O {[%clk 0:03:04.2]} 9. Qc1 {[%clk 0:03:00.8]} 9... Nbd7 {[%clk 0:03:04.2]}
10. Ba3 {[%clk 0:03:01.6]} 10... Bxa3 {[%clk 0:03:04.4]} 11. Nxa3 {[%clk
0:03:00.8]} 11... a5 {[%clk 0:03:03.4]} 12. e3 {[%clk 0:02:55.6]} 12... a4
{[%clk 0:03:02.6]} 13. Nc2 {[%clk 0:02:46.1]} 13... b6 {[%clk 0:02:49.7]} 14.
Rd1 {[%clk 0:01:56.9]} 14... Ba6 {[%clk 0:02:46.5]} 15. Bf1 {[%clk 0:01:50.8]}
15... Ne4 {[%clk 0:02:42.6]} 16. Qb2 {[%clk 0:01:29.5]} 16... Rfb8 {[%clk
0:02:23.3]} 17. Rac1 {[%clk 0:01:26]} 17... h6 {[%clk 0:01:13.9]} 18. Nce1
{[%clk 0:01:15.9]} 18... a3 {[%clk 0:01:10.2]} 19. Qc2 {[%clk 0:01:13.3]} 19...
Rc8 {[%clk 0:01:03.6]} 20. Nd3 {[%clk 0:01:09.4]} 20... Nd6 {[%clk 0:00:43.4]}
21. Nde5 {[%clk 0:00:56.1]} 21... Nxe5 {[%clk 0:00:38.9]} 22. Nxe5 {[%clk
0:00:58]} 22... Nf7 {[%clk 0:00:37.9]} 23. Nd3 {[%clk 0:00:51.3]} 23... Nd6
{[%clk 0:00:20.8]} 24. c5 {[%clk 0:00:50.9]} 24... bxc5 {[%clk 0:00:19]} 25.
Nxc5 {[%clk 0:00:50.8]} 25... Bxf1 {[%clk 0:00:19]} 26. Rxf1 {[%clk 0:00:51.1]}
26... Ne4 {[%clk 0:00:20.1]} 27. Nd3 {[%clk 0:00:49.9]} 27... c5 {[%clk
0:00:19.8]} 28. dxc5 {[%clk 0:00:49.3]} 28... e5 {[%clk 0:00:21.1]} 29. b4
{[%clk 0:00:49.6]} 29... Rab8 {[%clk 0:00:20.8]} 30. Rfd1 {[%clk 0:00:47.4]}
30... Rb5 {[%clk 0:00:20.9]} 31. Qb3 {[%clk 0:00:47.1]} 31... Nf6 {[%clk
0:00:19.9]} 32. Qxa3 {[%clk 0:00:46.5]} 32... Kh7 {[%clk 0:00:20.7]} 33. Qc3
{[%clk 0:00:44.3]} 33... Ng4 {[%clk 0:00:16.2]} 34. h3 {[%clk 0:00:41.8]} 34...
e4 {[%clk 0:00:17.4]} 35. hxg4 {[%clk 0:00:42.4]} 35... exd3 {[%clk 0:00:18.5]}
36. Qxd3 {[%clk 0:00:43.5]} 36... g6 {[%clk 0:00:19.1]} 37. Qxb5 {[%clk
0:00:43.3]} 1-0